Cogmind - Beta 12 @@@ ROGUE MODE // 2023.06.12 @ 16:22:32 Player: deadnoob Result: Destroyed by 8R-AWN with 8R-AWN's Boregun Performance ------------- Evolutions (0) 0 Regions Visited (3) 600 Robots Destroyed (31) 155 Value Destroyed (691) 691 Prototype IDs (25) 500 Alien Tech Used (0) 0 Bonus (300) 300 TOTAL SCORE: 2246 Bonus ------- Aligned with FarCom 300 Cogmind --------- Core Integrity 0/250 Matter 305/500 Energy 240/240 System Corruption 0% Temperature Cool (80) Movement Treading (160) Location -10/Exiles Parts ------- > --- POWER (1) -------- Nuclear Core > --- PROPULSION (2) --- Light Treads > --- UTILITY (2) ------ High-capacity Matter Pod > --- WEAPON (2) ------- Autogun Autogun > --- INVENTORY (5) ---- Heat Sink Grenade Launcher Improved Grenade Launcher Peak State ------------ > --- POWER ------------ Nuclear Core > --- PROPULSION ------- Light Treads Light Treads > --- UTILITY ---------- Heat Sink Large Storage Unit > --- WEAPON ----------- Autogun Autogun > --- INVENTORY -------- Reinforced Deuterium Engine Fission Core Light Fission Core Light Treads Superbattery Large Matter Pod Improved Terrain Scanner Cloak of Protection Heavy Armor Plating Autogun Autogun Grenade Launcher Grenade Launcher Improved Grenade Launcher [Rating: 16] Favorites ----------- Power Nuclear Core Engine Ion Engine Power Core Nuclear Core Propulsion Light Treads Treads Light Treads Leg Aluminum Leg Wheel Compact Wheel Utility Heat Sink Device Heat Sink Storage Large Storage Unit Protection Heavy Armor Plating Weapon Autogun Energy Gun Small Laser Ballistic Gun Autogun Launcher Improved Grenade Launcher Build | -11 -10 -10 -10 ------- Run | Jun Mat Min Exi Slots Evolved . | . . . . Power . | . . . . Propulsion . | . . . . Utility . | . . . . Weapon . | . . . . Parts Attached 25 | 1 12 3 9 Power 2 | . 1 1 . Engine 1 | . 1 . . Core 1 | . . 1 . Reactor . | . . . . Propulsion 5 | . 3 1 1 Treads 4 | . 2 1 1 Leg . | . . . . Wheel 1 | . 1 . . Hover . | . . . . Flight . | . . . . Utility 6 | . 2 . 4 Device 1 | . 1 . . Storage 4 | . 1 . 3 Processor . | . . . . Hackware . | . . . . Protection 1 | . . . 1 Artifact . | . . . . Weapon 12 | 1 6 1 4 Energy Gun . | . . . . Energy Cannon . | . . . . Ballistic Gun 9 | 1 4 1 3 Ballistic Cannon . | . . . . Launcher 3 | . 2 . 1 Special Weapon . | . . . . Impact Weapon . | . . . . Slashing Weapon . | . . . . Piercing Weapon . | . . . . Special Melee Weapon . | . . . . Unidentified Prototypes . | . . . . Parts Lost 4 | . . . 4 Power . | . . . . Propulsion 2 | . . . 2 Utility 1 | . . . 1 Weapon 1 | . . . 1 Highest Loss Streak 4 | . . . 4 To Critical Strikes 3 | . . . 3 Average Slot Usage (%) 98 | . 96 99 97 Engine 6 | . 14 6 . Core 7 | . . 7 14 Treads 24 | . 15 28 27 Leg 3 | . 12 . . Device 12 | . 10 14 12 Storage 13 | . 14 14 12 Energy Gun 2 | . 9 . . Ballistic Gun 23 | . 16 27 23 Launcher 1 | . 1 . 4 Naked Turns . | . . . . Heaviest Build 57 | 11 32 34 57 Greatest Support 40 | 20 40 40 40 Greatest Overweight (x) 1 | . . 1 1 Average Overweight (x) . | . . . . Largest Inventory Capacity 20 | 8 15 15 20 Average Capacity 14 | 8 12 15 15 Most Carried 17 | 6 12 15 17 Average Carried 11 | 6 8 12 12 Final Capacity 15 | 8 15 15 5 Final Carried 13 | 6 12 13 3 Class Distribution -------------------- 100% | Mutant Dominant Class ---------------- Mutant | -10/Materials Mutant | -10/Mines Mutant | -10/Exiles Resources | -11 -10 -10 -10 ----------- Run | Jun Mat Min Exi Matter Collected 1129 | 200 530 191 208 Remotely . | . . . . Salvage Created 1102 | . 599 503 . Parts 79 | . 45 34 . Haulers Intercepted 1 | . 1 . . Recyclers Shooed 2 | . 2 . . Parts Field Recycled . | . . . . Retrieved Matter . | . . . . Parts Self-Destructed . | . . . . Prevented . | . . . . Kills | -11 -10 -10 -10 ------- Run | Jun Mat Min Exi Combat Hostiles Destroyed 19 | . 14 4 1 Guns 15 | . 11 4 . AOE 4 | . 3 . 1 Classes Destroyed 9 | . 6 2 1 Worker 1 | . 1 . . Builder 3 | . 1 2 . Tunneler 3 | . . 3 . Hauler 1 | . 1 . . Recycler 3 | . . 3 . Operator 2 | . 2 . . Swarmer 3 | . 3 . . Grunt 15 | . 11 4 . Assembled 1 | . . . 1 Best Kill Streak 4 | . 4 3 1 Combat Bots Only 3 | . 3 2 1 Max Kills in Single Turn 4 | . 4 1 1 Gunslinging . | . . . . Exploded 3 | . 3 . 1 Melee . | . . . . Uniques/NPCs Destroyed . | . . . . Combat | -11 -10 -10 -10 -------- Run | Jun Mat Min Exi Damage Taken 1245 | . 438 54 753 Core 252 | . 149 15 88 Absorbed by Shields . | . . . . Core Remaining (%) 100 | 100 . . . Volleys Fired 93 | . 51 19 23 Largest 2 | . 2 2 2 Hottest 60 | . 60 46 59 Shots Fired 182 | . 99 38 45 Gun 177 | . 96 38 43 Cannon . | . . . . Launcher 5 | . 3 . 2 Special . | . . . . Kinetic 146 | . 65 38 43 Thermal 31 | . 31 . . Explosive 5 | . 3 . 2 Electromagnetic . | . . . . Robot Hit Streak 9 | . 9 8 9 Robot Miss Streak 3 | . 2 3 3 Penetration Max . | . . . . Secondary Targets . | . . . . Shots Hit Robots 121 | . 66 25 30 Core Hits 50 | . 30 16 4 Critical Kills . | . . . . Critical Parts Destroyed 1 | . 1 . . Critical Strikes 1 | . 1 . . Destroy 1 | . 1 . . Melee Attacks . | . . . . Impact . | . . . . Slashing . | . . . . Piercing . | . . . . Sneak Attacks . | . . . . Combat Hostiles . | . . . . Follow-up Attacks . | . . . . Damage Inflicted 1954 | . 1037 388 529 Guns 1679 | . 842 388 449 Cannons . | . . . . Explosions 275 | . 195 . 80 Melee . | . . . . Ramming . | . . . . Kinetic 1406 | . 569 388 449 Thermal 273 | . 273 . . Explosive 275 | . 195 . 80 Electromagnetic . | . . . . Impact . | . . . . Slashing . | . . . . Piercing . | . . . . Highest Corruption . | . . . . Average Corruption . | . . . . Corruption Purged . | . . . . Corruption Blocked . | . . . . Overload Shots . | . . . . Overflow Damage . | . . . . Projectiles . | . . . . Explosions . | . . . . Melee . | . . . . Knockbacks . | . . . . Impact . | . . . . Kinetic . | . . . . Secondary . | . . . . Self-Inflicted Damage 23 | . 23 . . Shots 1 | . 1 . . Rammed . | . . . . Targets Rammed . | . . . . Kicked . | . . . . Crushed . | . . . . Highest Temperature 160 | . 30 4 160 Average Temperature 68 | . 17 4 82 Received Heat Transfer 281 | . 228 33 20 Siege Activations . | . . . . Robots Corrupted . | . . . . Combat Hostiles . | . . . . Parts Fried . | . . . . Impact Corruptions . | . . . . Robots Melted . | . . . . Combat Hostiles . | . . . . Parts Melted 1 | . 1 . . Heat Transferred 600 | . 600 . . Parts Sabotaged . | . . . . Parts Stolen . | . . . . Parts Stripped . | . . . . Power Chain Reactions . | . . . . Missiles Intercepted . | . . . . Alert | -11 -10 -10 -10 ------- Run | Jun Mat Min Exi Peak Influence 307 | . 307 98 . Initial 78 | . . 78 . Average 80 | . 160 32 . Maximum Alert Level 1 | . 1 . . Low Security (%) 87 | 100 67 100 . Level 1 12 | . 32 . . Level 2 . | . . . . Level 3 . | . . . . Level 4 . | . . . . Level 5 . | . . . . High Security . | . . . . Max Security . | . . . . Squads Dispatched 4 | . 4 . . Investigation 2 | . 2 . . Extermination . | . . . . Reinforcement 2 | . 2 . . Assault . | . . . . Garrison . | . . . . Intercept . | . . . . Searches Triggered . | . . . . Construction Impeded . | . . . . Haulers Reinforced . | . . . . Active Scanning Responses . | . . . . Cargo Convoy Interrupts . | . . . . Stealth | -11 -10 -10 -10 --------- Run | Jun Mat Min Exi Distress Signals 2 | . 2 . . Communications Jammed . | . . . . Distress Signals . | . . . . Times Spotted 28 | . 21 4 3 Peak Tracking Total 9 | . 4 2 9 Tactical Retreats 1 | . 1 . . Traps | -11 -10 -10 -10 ------- Run | Jun Mat Min Exi Traps Triggered 2 | . 1 1 . Indirectly . | . . . . Trap Hack Attempts . | . . . . Triggered . | . . . . Disarmed . | . . . . Reprogrammed . | . . . . Reused . | . . . . Traps Extracted . | . . . . Installed . | . . . . Triggered . | . . . . Exploded 3 | . . . 3 Machines | -11 -10 -10 -10 ---------- Run | Jun Mat Min Exi Machines Disabled 5 | . 1 . 4 Max in Single Turn 1 | . 1 . 1 Machines Repaired . | . . . . Machines Sabotaged . | . . . . Overloaded Fab Kills . | . . . . Hacking | -11 -10 -10 -10 --------- Run | Jun Mat Min Exi Machines Accessed 9 | . 6 1 2 Terminals 5 | . 5 . . Fabricators . | . . . . Repair Stations . | . . . . Recycling Units 1 | . 1 . . Scanalyzers . | . . . . Garrison Access . | . . . . Total Hacks 23 | . 20 1 2 Successful 10 | . 7 1 2 Failed 12 | . 12 . . Catastrophic . | . . . . Database Lockouts 1 | . 1 . . Manual 12 | . 11 . 1 Terminals 18 | . 18 . . Fabricators . | . . . . Repair Stations . | . . . . Recycling Units 2 | . 2 . . Scanalyzers . | . . . . Garrison Access . | . . . . Terminal Hacks 9 | . 6 1 2 Record 1 | . . . 1 Robot Analysis 2 | . 2 . . Prototype ID Bank 1 | . 1 . . Open Door 1 | . . 1 . Branch Access Points 1 | . 1 . . Hauler Manifests 1 | . 1 . . Zone Layout 1 | . 1 . . EX-Prototype ID Bank 1 | . . . 1 Fabricator Hacks . | . . . . Repair Station Hacks . | . . . . Recycling Unit Hacks . | . . . . Scanalyzer . | . . . . Garrison Access Hacks . | . . . . Unauthorized Hacks 1 | . 1 . . Terminals . | . . . . Fabricators . | . . . . Repair Stations . | . . . . Recycling Units 1 | . 1 . . Tunnel 1 | . 1 . . Scanalyzers . | . . . . Garrison Access . | . . . . Data Cores Recovered 1 | . 1 . . Used . | . . . . Hacking Detections 6 | . 6 . . Full Trace Events . | . . . . Feedback Events . | . . . . Feedback Blocked . | . . . . Robot Schematics Acquired . | . . . . Robots Built . | . . . . Authchips . | . . . . Time . | . . . . Total Robot Build Rating . | . . . . Part Schematics Acquired . | . . . . Parts Built . | . . . . Authchips . | . . . . Time . | . . . . Total Part Build Rating . | . . . . Parts Repaired . | . . . . Time . | . . . . Parts Recycled . | . . . . Recycled Matter . | . . . . Retrieved Matter . | . . . . Retrieved Components . | . . . . Parts Scanalyzed . | . . . . Part Schematics Acquired . | . . . . Parts Damaged . | . . . . Bothacking | -11 -10 -10 -10 ------------ Run | Jun Mat Min Exi Used RIF Installer . | . . . . Robots Hacked . | . . . . Non-combat . | . . . . Combat . | . . . . Robot Hacks Applied . | . . . . Relay Couplers Released . | . . . . Fabnet Peak Effective % . | . . . . Robots Rewired . | . . . . Allies Hacked . | . . . . Hacks Repelled . | . . . . Allies | -11 -10 -10 -10 -------- Run | Jun Mat Min Exi Total Allies . | . . . . Largest Group . | . . . . Highest-Rated Group . | . . . . Highest-Rated Ally . | . . . . Total Orders . | . . . . Ally Attacks . | . . . . Total Damage . | . . . . Kills . | . . . . Allies Corrupted . | . . . . Allies Melted . | . . . . Intel | -11 -10 -10 -10 ------- Run | Jun Mat Min Exi Robot Analysis Total 2 | . 2 . . Derelict Logs Recovered 2 | . . 2 . Drone Launches . | . . . . Drone Recoveries . | . . . . Exploration | -11 -10 -10 -10 ------------- Run | Jun Mat Min Exi Turns Passed 3359 | 2 863 1446 1048 Spaces Moved 1746 | 1 452 807 486 Core . | . . . . Treads 1509 | . 216 807 486 Legs 237 | 1 236 . . Wheels . | . . . . Hover . | . . . . Flight . | . . . . Fastest Speed 120 | 120 120 160 160 Average Speed 162 | 120 139 160 189 Slowest Speed 240 | 120 160 240 240 Overloaded Moves . | . . . . Propulsion Burnouts . | . . . . Robots Hopped . | . . . . Cave-ins Triggered . | . . . . Exploration Rate (%) 60 | 2 73 97 70 Regions Visited 3 Branch Regions 2 Pre-discovered Areas 3 | . 1 1 1 Known Exits Taken 1 | . 1 . . Unknown Exits Taken 2 | 1 . 1 . Scrap Searched 1 | . . 1 . Spaces Dug 16 | . 16 . . Terrain Destroyed 34 | . 24 . 10 Melee . | . . . . Projectile . | . . . . AOE 34 | . 24 . 10 Terrain Rammed . | . . . . Walls Destroyed . | . . . . Machines Disabled . | . . . . Actions | -11 -10 -10 -10 --------- Run | Jun Mat Min Exi Total 2116 | 1 591 932 592 Wait 189 | . 64 95 30 Move 1743 | . 451 806 486 Hop . | . . . . Pick Up 29 | . 9 4 16 Fast Attach 6 | . 1 2 3 Attach 2 | . . . 2 Detach 1 | . . . 1 Swap 17 | 1 11 1 4 Drop 36 | . 4 5 27 Fire 93 | . 51 19 23 Melee . | . . . . Ram . | . . . . Kick . | . . . . Crush . | . . . . Escape Stasis . | . . . . Rewire . | . . . . Trap . | . . . . Miscellaneous . | . . . . Route ------- -11/Junkyard -10/Materials (discovered 4 exits: [*Mat x2] / *Min x2) -10/Mines (discovered 3 exits: [*Mat x2] / *Exi) -10/Exiles (discovered 1 exit: [*Min]) History --------- Turn | Location | Event 3 | -11/Junkyard | Discovered new exit (range 0) 3 | -11/Junkyard | Entered Materials 84 | -10/Materials | Identified exit to Mines 244 | -10/Materials | Discovered new exit (range 3) 272 | -10/Materials | Central database locked down 308 | -10/Materials | Build established: Mutant 513 | -10/Materials | Discovered new exit (range 14) 678 | -10/Materials | Core integrity fell below 50% 866 | -10/Materials | Entered Mines 941 | -10/Mines | A weapon hastily lodged in a ceiling crevice suddenly fell to the ground 948 | -10/Mines | Met a Derelict bent on vengeance 964 | -10/Mines | Learned location of Zion (-7) 1379 | -10/Mines | Discovered new exit (range 5) 1389 | -10/Mines | Met a Derelict who couldn't figure out how to use a Trap Extractor 1661 | -10/Mines | Assembled infested the area 2100 | -10/Mines | Discovered new exit (range 11) 2264 | -10/Mines | Deemed a non-threat by the Exiles lab entrance 2264 | -10/Mines | Discovered new exit (range 5) 2312 | -10/Mines | Entered Exiles 2356 | -10/Exiles | Met 8R-AWN 2383 | -10/Exiles | Met EX-HEX 2444 | -10/Exiles | Met EX-DEC 2478 | -10/Exiles | Met EX-BIN 2500 | -10/Exiles | Aligned with FarCom system 2502 | -10/Exiles | Given EX-Vault access code 2540 | -10/Exiles | Opened EX-Vault 2568 | -10/Exiles | Found Cloak of Protection 2572 | -10/Exiles | Found Superbattery 2609 | -10/Exiles | Warned to stay clear of 0b10 Research branches 2956 | -10/Exiles | Discovered new exit (range 15) 3216 | -10/Exiles | Attacked by the Exiles 3343 | -10/Exiles | Core integrity fell below 20% 3360 | -10/Exiles | Destroyed by 8R-AWN with 8R-AWN's Boregun Last Messages --------------- 03333_ HV Slug penetrates Earth. 03333_ Penetrated by HV Slug. 03333_ HV Slug penetrates Earth. 03335_ Penetrated by HV Slug. 03335_ HV Slug penetrates Wall. 03335_ HV Slug penetrates Machine. 03335_ Machine disabled. 03335_ Destroyed Prototype Protection. 03337_ Penetrated by HV Slug. 03339_ Critical hit (Destroy). 03339_ Lgt. Treads destroyed. 03342_ Penetrated by HV Slug. 03342_ Critical hit (Destroy). 03342_ Lgt. Treads destroyed. 03342_ Penetrated by HV Slug. 03344_ Critical hit (Destroy). 03344_ Autogun destroyed. 03346_ Penetrated by HV Slug. 03348_ HV Slug penetrates Wall. 03352_ Penetrated by HV Slug. Map ----- +----------------------------------------------------+ | ?????????????????????????????????????????????????? | | ?????????#####???????????????????????????????????? | | ????????## ##??????????????????????????????????? | | ????????# #??????????????????????????????????? | | ????????# < #??????????????????????????????????? | | ????????# ###????????????????????????????????? | | ????????# ] #????????????????????????????????? | | ????????# !! #?????????????????????????????????? | | ????????## ! #?????????????????????????????????? | | ?????????# ##????????????????????????????????? | | ?????????## #????????????#######?????????????? | | ??????????# #######??????#!!! "#?????????????? | | ??????????# #""##?????# "#?????????????? | | ??????????## #?????# "#?????????????? | | ???????????##" ##???## ""#????????????## | | ???????????#"" #####" ""#???????????? | | ???????????#### ## ""#????????????" | | ??????????????## #" ##???????????" | | ???????????????#"## #??????????"" | | ???????????????#######!! # ##?????????"" | | ?????????????????????### ! #????????? | | ???????????????######## ###??????????" | | ???????????????# ! """" ! "" #????????# | | ???????????????#! !g ### "#####???### | | ???????????????#! [ ## % #####X# | | ???????????????#! @##### | | ???????????????# """"" ;;#???# # % | | ???????????????########## #???#### | | ????????????????????????# #??????### % | | ????????????????????????# #????????### | | ????????????????????????# #??????????## | | ????????????????????????# #???????????## | | ????????????????????????# #????????????##" | | ????????????????????????# #?????????????#""" | | ????????????????????????? ?????????????##" | | ????????????????????????? ?????????????#"" | | ????????????????????????? ?????????????#""" | | ????????????????????????? ????????????#""" | | ????????????????????????? ?????????????""" | | ????????????????????????? ????????????#"" | | ????????????????????????? ????????????#""" | | ??????????????????????????????????????#"" | | ???????????????????????????????????????#"" | | ???????????????????????????????????????#"""" | | ????????????????????????????????????????# | | ????????????????????????????????????????#" | | ????????????????????????????????????????#"""" | | ????????????????????????????????????????#"" | | ?????????????????????????????????????????" | | ?????????????????????????????????????????""" | +----------------------------------------------------+ Best States ------------- Heat Dissipation 35 Energy Generation 14 Energy Capacity 250 Matter Stores 490 Matter Capacity 500 Sight Range 16 Terrain Scan Density 10 Armor Coverage 600 Evasion (%) 55 Recoil Reduction 2 Item Schematics ----------------- None Robot Schematics ------------------ None Fabricated ------------ Nothing Alien Tech Used ----------------- None Achievements -------------- None Challenges ------------ None Game ------ Seed StealthChargeSuperbattery Manual? 0 Play Time 00:17:47 Cumulative 220.4 hours Start 2023.06.12 @ 16:06:40 End 2023.06.12 @ 16:22:32 Sessions 1 Manual Loads 0 Difficulty Rogue Special Mode None Game No. 304 Rogue 304 Adventurer 0 Explorer 0 Win Type - Total 7 Types 6/0/0/1/0/0/0/0/0 Lore% 82 Gallery% 86 Achievement% 69 Wizard Run 0 Options --------- ASCII 0 Keyboard 0 Movement Numpad Keybinds 0 Fullscreen 2 Font 18/SmallcapsGlow Map View 76x50 Tactical HUD 1 Map Filters NONE Filters NONE Steam 1 RUN: 9a8a7599-6709-41a8-93f2-d26ccc7599c7